fUSD/lending_fUSD_20251027
["ID","MTS","AMOUNT","RATE_DAILY","PERIOD"]
[392472387,1761533245222,-150.0,0.00039822,4]
[392472388,1761533245247,-150.00000001,0.00039822,4]
[392472389,1761533245266,-150.0,0.00039822,4]
[392472390,1761533245285,-150.0,0.00039822,4]
[392472391,1761533245304,-150.00000001,0.00039822,4]
[392472392,1761533245324,-152.0,0.00039999,4]
[392472393,1761533245344,-193.22117144,0.0004,30]
[392472394,1761533245364,-400.0,0.0004,120]
[392472395,1761533245384,-1406.0,0.0004,2]
[392472396,1761533245405,-1103.08650085,0.0004,2]
[392472397,1761533245429,-367.37762488,0.0004001,120]
[392472398,1761533245448,-801.45488532,0.00041662,2]
[392472399,1761533245468,-152.0,0.00041749,5]
[392472400,1761533245487,-504.0,0.00041753,2]
[392472401,1761533245506,-195.0,0.000418,120]
[392472402,1761533245524,-181.32,0.00041822,2]
[392472403,1761533245544,-151.0,0.00041877,2]
[392472404,1761533245565,-151.0,0.00041877,2]
[392472405,1761533245584,-151.0,0.00041877,2]
[392472406,1761533245603,-151.0,0.00041877,2]
[392472407,1761533245623,-151.0,0.00041877,2]
[392472408,1761533245646,-151.0,0.00041877,2]
[392472409,1761533245665,-151.0,0.00041877,2]
[392472410,1761533245685,-151.0,0.00041877,2]
[392472411,1761533245704,-151.0,0.00041877,2]
[392472412,1761533245724,-151.0,0.00041877,2]
[392472413,1761533245742,-151.0,0.00041877,2]
[392472414,1761533245761,-151.0,0.00041877,2]
[392472415,1761533245779,-151.0,0.00041877,2]
[392472416,1761533245798,-151.0,0.00041877,2]
[392472417,1761533245817,-151.0,0.00041877,2]
[392472418,1761533245836,-151.0,0.00041877,2]
[392472419,1761533245855,-151.0,0.00041877,2]
[392472420,1761533245875,-151.0,0.00041877,2]
[392472421,1761533245894,-151.0,0.00041877,2]
[392472422,1761533245913,-151.0,0.00041877,2]
[392472423,1761533245933,-278.00401098,0.00041877,2]
[392472424,1761533245954,-151.0,0.00041877,2]
[392472425,1761533245976,-151.0,0.00041877,2]
[392472426,1761533245996,-151.0,0.00041877,2]
[392472427,1761533246016,-151.0,0.00041877,2]
[392472428,1761533246035,-151.0,0.00041877,2]
[392472429,1761533246055,-151.0,0.00041877,2]
[392472430,1761533246074,-151.0,0.00041877,2]
[392472431,1761533246094,-151.0,0.00041877,2]
[392472432,1761533246114,-151.0,0.00041877,2]
[392472433,1761533246134,-151.0,0.00041877,2]
[392472434,1761533246155,-151.0,0.00041877,2]
[392472435,1761533246175,-186.84,0.0004188,62]
[392472436,1761533246196,-168.0,0.00041888,2]
[392472437,1761533246216,-160.0,0.0004189,2]
[392472438,1761533246238,-500.0,0.00041901,31]
[392472439,1761533246259,-500.0,0.00041901,31]
[392472440,1761533246280,-500.0,0.00041901,31]
[392472441,1761533246301,-464.97808448,0.00041901,31]
[392472442,1761533246322,-500.0,0.00041901,31]
[392472443,1761533246343,-500.0,0.00041901,31]
[392472444,1761533246365,-500.0,0.00041901,31]
[392472445,1761533246386,-500.0,0.00041901,31]
[392472446,1761533246408,-500.0,0.00041901,31]
[392472447,1761533246426,-2113.51,0.00041902,2]
[392472448,1761533246444,-150.99,0.00041902,2]
[392472449,1761533246462,-9999.99,0.00041902,2]
[392472450,1761533246481,-400.0,0.00042,120]
[392472451,1761533246505,-150.0,0.0004202,2]
[392472452,1761533246528,-168.0,0.00042026,2]
[392472453,1761533246547,-150.0,0.00042034,30]
[392472454,1761533246565,-1376.78261605,0.00042366,2]
[392472455,1761533251089,-24.54738395,0.00042366,2]
[392472456,1761533251109,-250.0,0.00042424,120]
[392472457,1761533251128,-487.01196703,0.00042707,2]
[392472458,1761533264302,153.0,0.00038008,90]
[392472459,1761533280546,-513.57935999,0.000405,120]
[392472460,1761533287650,-236.23731468,0.000405,120]
[392472461,1761533300010,-352.31495934,0.000405,120]
[392472462,1761533304080,-202.35359626,0.000405,120]
[392472463,1761533309724,-156.58119535,0.000405,120]
[392472483,1761533431968,-230.33979004,0.00038748,2]
[392472484,1761533431979,-142.46839924,0.00038848,5]
[392472485,1761533431991,-1219.05545319,0.00038848,5]
[392472486,1761533432002,-453.90225497,0.00038848,5]
[392472487,1761533432018,-184.5738926,0.00038848,5]
[392472488,1761533432028,-370.0,0.00038848,3]
[392472489,1761533432037,-205.19658093,0.000405,120]
[392472490,1761533432048,-365.98774924,0.000405,120]
[392472491,1761533432207,-2729.28918046,0.000405,120]
[392472492,1761533432217,-1858.73,0.00041095,120]
[392472493,1761533432226,-1858.73,0.00041095,120]
[392472494,1761533432235,-1858.73,0.00041095,120]
[392472495,1761533432244,-1858.73,0.00041095,120]
[392472496,1761533432254,-1858.73,0.00041095,120]
[392472497,1761533432263,-1858.73,0.00041095,120]
[392472498,1761533432273,-1858.73,0.00041095,120]
[392472499,1761533432282,-1858.73,0.00041095,120]
[392472500,1761533432291,-1858.73,0.00041095,120]
[392472501,1761533432300,-1858.73,0.00041095,120]
[392472502,1761533432310,-1858.73,0.00041095,120]
[392472503,1761533432319,-1858.73,0.00041095,120]
[392472504,1761533432328,-1858.73,0.00041095,120]
[392472505,1761533432337,-1858.73,0.00041095,120]
[392472506,1761533432346,-1858.73,0.00041095,120]
[392472507,1761533432355,-1858.73,0.00041095,120]
[392472508,1761533432365,-1858.73,0.00041095,120]
[392472509,1761533432374,-1858.73,0.00041095,120]
[392472510,1761533432383,-1858.73,0.00041095,120]
[392472511,1761533432392,-1858.73,0.00041095,120]
[392472512,1761533432401,-1858.73,0.00041095,120]
[392472513,1761533432410,-1858.73,0.00041095,120]
[392472514,1761533432419,-1858.73,0.00041095,120]
[392472515,1761533432428,-1858.79389652,0.00041095,120]
[392472516,1761533432437,-2508.8919347,0.00041867,2]
[392472517,1761533432446,-407.3713628,0.00041906,2]
[392472518,1761533432455,-2272.9,0.00042557,2]
[392472519,1761533432465,-1200.0,0.00042706,5]
[392472520,1761533432475,-301.0,0.00042706,5]
[392472521,1761533432484,-13064.56803297,0.00042707,2]
[392472522,1761533432494,-2584.74,0.00042724,2]
[392472523,1761533432503,-1000.0,0.00042769,2]
[392472524,1761533432512,-168.0,0.00042858,120]
[392472525,1761533432521,-202.50578999,0.00042884,4]
[392472526,1761533432530,-202.94327495,0.00042884,4]
[392472528,1761533432539,-3300.47351063,0.00042929,120]
[392472530,1761533432548,-219.0,0.00043,90]
[392472532,1761533432558,-168.0,0.00043176,7]
[392472533,1761533432566,-500.0,0.00043356,60]
[392472535,1761533432575,-508.87442901,0.00043356,60]
[392472537,1761533432584,-500.0,0.00043356,60]
[392472540,1761533432593,-205.3362908,0.00043356,60]
[392472543,1761533432601,-150.0,0.00043356,60]
[392472545,1761533432610,-500.0,0.00043356,120]
[392472547,1761533432619,-199.76347407,0.00043356,60]
[392472549,1761533432628,-150.0,0.00043383,60]
[392472551,1761533432637,-500.0,0.00043383,120]
[392472553,1761533432646,-150.0,0.00043411,60]
[392472555,1761533432655,-500.0,0.00043411,120]
[392472557,1761533432664,-150.0,0.00043438,60]
[392472558,1761533432673,-500.0,0.00043438,120]
[392472559,1761533432682,-278.58679282,0.00043466,60]
[392472560,1761533432694,-500.0,0.00043466,120]
[392472561,1761533432703,-158.0,0.00043474,4]
[392472562,1761533432712,-284.40281086,0.00043474,15]
[392472563,1761533432721,-500.0,0.00043474,31]
[392472564,1761533432731,-503.47187809,0.00043474,7]
[392472565,1761533432740,-185.21614696,0.00043474,31]
[392472566,1761533432749,-500.0,0.00043474,31]
[392472567,1761533432758,-21763.6942953,0.00043475,2]
[392472568,1761533432768,-500.0,0.00043493,120]
[392472569,1761533432780,-152.0,0.00043499,6]
[392472571,1761533432789,-562.6147218,0.0004352,120]
[392472573,1761533432799,-168.0,0.00043575,120]
[392472575,1761533432808,-892.87,0.00043694,2]
[392472577,1761533432817,-1406.6317134,0.000437,2]
[392472579,1761533432826,-309.0,0.00043709,120]
[392472581,1761533432835,-173.55,0.00043753,30]
[392472583,1761533432843,-500.0,0.000438,120]
[392472585,1761533432852,-1191.895,0.00043828,2]
[392472587,1761533432861,-233.9129,0.00043828,2]
[392472589,1761533432870,-151.0,0.00043902,2]
[392472591,1761533432879,-43010.0372781,0.00043928,2]
[392472592,1761533432888,-1051.5780574,0.00043928,2]
[392472594,1761533432897,-150.0,0.00043928,2]
[392472596,1761533432907,-765.3603973,0.00043929,2]
[392472598,1761533432916,-150.0,0.00043955,2]
[392472601,1761533432926,-4041.17148742,0.00043969,15]
[392472603,1761533432936,-889.76571,0.0004397,21]
[392472604,1761533432945,-200.0,0.00043983,2]
[392472606,1761533432954,-400.0,0.00044,120]
[392472607,1761533432962,-1000.0,0.00044,2]
[392472608,1761533432972,-70000.0,0.00044,120]
[392472609,1761533432981,-4041.17148735,0.00044041,15]
[392472610,1761533432991,-159.538,0.00044058,2]
[392472611,1761533433000,-820.0,0.00044058,2]
[392472612,1761533433009,-573.0,0.00044058,2]
[392472613,1761533433019,-2055.0,0.00044058,2]
[392472614,1761533433028,-3431.887,0.00044058,2]
[392472615,1761533433037,-1598.135,0.00044058,2]
[392472616,1761533433046,-610.186,0.00044058,2]
[392472618,1761533433054,-1318.055,0.00044058,2]
[392472619,1761533433063,-907.846,0.00044058,2]
[392472620,1761533433072,-1191.406,0.00044058,2]
[392472621,1761533433082,-824.0,0.00044058,2]
[392472622,1761533433091,-1277.707,0.00044058,2]
[392472623,1761533433099,-6587.0,0.00044058,2]
[392472624,1761533433109,-6461.0,0.00044058,2]
[392472625,1761533433119,-3521.76,0.00044058,2]
[392472626,1761533433128,-14212.13301414,0.00044058,30]
[392472627,1761533433138,-679.33140247,0.00044069,30]
[392472628,1761533433147,-680.66293411,0.000441,120]
[392472629,1761533433156,-4041.17148735,0.00044114,15]
[392472630,1761533433164,-160.07659394,0.00044149,28]
[392472631,1761533433173,-794.489892,0.00044159,16]
[392472632,1761533433182,-1202.72336685,0.00044159,15]
[392472633,1761533433191,-1000.0,0.00044159,2]
[392472634,1761533433200,-5000.0,0.00044159,120]
[392472635,1761533433209,-544.3148,0.00044159,2]
[392472636,1761533433218,-765.3603973,0.00044162,2]
[392472637,1761533433227,-256.57131179,0.00044169,2]
[392472638,1761533433236,-1202.72336681,0.00044183,15]
[392472639,1761533433244,-4041.17148735,0.00044186,15]
[392472640,1761533433253,-1202.72336681,0.00044207,15]
[392472641,1761533433262,-265.58191584,0.0004423,120]
[392472642,1761533433270,-273.54953823,0.0004423,120]
[392472643,1761533433279,-486.27607438,0.0004423,120]
[392472644,1761533433288,-1202.72336681,0.00044231,15]
[392472645,1761533433297,-242.61096073,0.00044247,30]
[392472646,1761533433306,-274.558211,0.00044249,120]
[392472647,1761533433314,-151.0,0.00044249,120]
[392472648,1761533433323,-502.01903849,0.00044249,2]
[392472649,1761533433333,-71559.8360261,0.00044249,3]
[392472650,1761533433344,-2531.95584394,0.00044249,3]
[392472651,1761533433355,-840.82494719,0.00044249,3]
[392472652,1761533433366,-119694.15583077,0.00044249,3]
[392472653,1761533433376,-17729.703709,0.00044249,3]
[392472654,1761533433385,-1202.72336681,0.00044255,15]
[392472655,1761533433394,-160.07659394,0.00044256,28]
[392472656,1761533433402,-21275.6444507,0.00044258,3]
[392472657,1761533433410,-500.0,0.00044258,120]
[392472658,1761533433419,-500.0,0.00044258,120]
[392472659,1761533433428,-598.0647633,0.00044258,120]
[392472660,1761533433437,-558.0164012,0.00044258,120]
[392472661,1761533433450,-174.07382928,0.00044258,120]
[392472662,1761533433458,-507.02230166,0.00044258,120]
[392472663,1761533433467,-596.29096159,0.00044258,120]
[392472664,1761533433476,-500.0,0.00044258,120]
[392472665,1761533433485,-327.58660914,0.00044258,120]
[392472666,1761533433495,-500.0,0.00044258,120]
[392472667,1761533433504,-266.67264217,0.00044258,120]
[392472668,1761533433513,-632.96222049,0.00044258,120]
[392472669,1761533433523,-561.67432766,0.00044258,120]
[392472670,1761533433532,-500.0,0.00044258,120]
[392472671,1761533433541,-292.48205301,0.00044258,120]
[392472672,1761533433551,-569.9906646,0.00044258,120]
[392472673,1761533433560,-492.05763194,0.00044258,120]
[392472674,1761533433569,-200.97400885,0.00044258,120]
[392472675,1761533433579,-500.0,0.00044258,120]
[392472676,1761533433588,-372.95949846,0.00044258,120]
[392472677,1761533433597,-190.2695061,0.00044258,120]
[392472678,1761533433606,-500.0,0.00044258,120]
[392472679,1761533433615,-500.0,0.00044258,120]
[392472680,1761533433625,-200.8136735,0.00044258,120]
[392472681,1761533433634,-184.44627058,0.00044258,120]
[392472682,1761533433643,-623.04323149,0.00044258,120]
[392472683,1761533433652,-580.21031162,0.00044258,120]
[392472684,1761533433661,-178.64529989,0.00044258,120]
[392472685,1761533433670,-280.83193906,0.00044258,120]
[392472686,1761533433680,-195.74010583,0.00044258,120]
[392472687,1761533433689,-1536.31,0.00044258,14]
[392472688,1761533433698,-1536.31,0.00044258,14]
[392472689,1761533433707,-196.2947697,0.00044258,120]
[392472690,1761533433716,-274.85388381,0.00044258,120]
[392472691,1761533433726,-500.0,0.00044258,120]
[392472692,1761533433735,-500.0,0.00044258,120]
[392472693,1761533433744,-500.0,0.00044258,120]
[392472694,1761533433753,-500.0,0.00044258,120]
[392472695,1761533433763,-194.89245176,0.00044258,120]
[392472696,1761533433775,-500.0,0.00044258,2]
[392472697,1761533433784,-500.0,0.00044258,2]
[392472698,1761533433794,-151.64206386,0.00044258,120]
[392472699,1761533433803,-500.0,0.00044258,120]
[392472700,1761533433813,-404.97423463,0.00044258,120]
[392472701,1761533433822,-500.0,0.00044258,120]
[392472702,1761533433831,-500.0,0.00044258,120]
[392472703,1761533433840,-500.0,0.00044258,120]
[392472704,1761533433851,-500.0,0.00044258,120]
[392472705,1761533433861,-409.58844126,0.00044258,120]
[392472706,1761533433870,-161.28763703,0.00044258,120]
[392472707,1761533433883,-1010.24236297,0.00044258,120]
[392472708,1761533433892,-1171.53,0.00044258,120]
[392472709,1761533433901,-276.91319184,0.00044258,120]
[392472710,1761533433911,-231.5804502,0.00044258,120]
[392472711,1761533433920,-330.65298138,0.00044258,120]
[392472712,1761533433929,-500.0,0.00044258,120]
[392472713,1761533433938,-500.0,0.00044258,120]
[392472714,1761533433948,-385.93794129,0.00044258,120]
[392472715,1761533433957,-500.0,0.00044258,120]
[392472716,1761533433967,-500.0,0.00044258,120]
[392472717,1761533433976,-264.47527352,0.00044258,120]
[392472718,1761533433987,-167.99819203,0.00044258,120]
[392472719,1761533433996,-150.26926571,0.00044258,120]
[392472720,1761533434006,-443.14397361,0.00044258,120]
[392472721,1761533434017,-171.42037108,0.00044258,120]
[392472722,1761533434026,-222.5207347,0.00044258,120]
[392472723,1761533434036,-500.0,0.00044258,120]
[392472724,1761533434045,-500.0,0.00044258,120]
[392472725,1761533434054,-192.8207954,0.00044258,120]
[392472726,1761533434063,-245.2979221,0.00044258,120]
[392472727,1761533434075,-78.47702884,0.00044258,120]
[392472728,1761533434085,-500.0,0.00044258,120]
[392472729,1761533434094,-500.0,0.00044258,120]
[392472730,1761533434103,-4041.17148735,0.00044258,15]
[392472731,1761533434113,-3233.04344077,0.00044259,3]
[392472732,1761533434126,-312.89730102,0.00044259,3]
[392472733,1761533434136,-151.0,0.00044259,120]
[392472734,1761533434145,-151.0,0.00044259,120]
[392472735,1761533434154,-151.0,0.00044259,120]
[392472736,1761533434163,-151.0,0.00044259,120]
[392472737,1761533434173,-151.0,0.00044259,120]
[392472738,1761533434181,-151.0,0.00044259,120]
[392472739,1761533434190,-151.0,0.00044259,120]
[392472740,1761533434199,-151.0,0.00044259,120]
[392472741,1761533434210,-151.0,0.00044259,120]
[392472742,1761533434224,-151.0,0.00044259,120]
[392472743,1761533434233,-151.0,0.00044259,120]
[392472744,1761533434242,-151.0,0.00044259,120]
[392472745,1761533434253,-151.0,0.00044259,120]
[392472746,1761533434262,-151.0,0.00044259,120]
[392472747,1761533434272,-156.498521,0.00044259,120]
[392472748,1761533434281,-151.0,0.00044259,120]
[392472749,1761533434291,-197.15762,0.00044259,120]
[392472750,1761533434300,-156.715222,0.00044259,120]
[392472751,1761533434309,-151.0,0.00044259,120]
[392472752,1761533434319,-151.0,0.00044259,120]
[392472753,1761533434328,-151.0,0.00044259,120]
[392472754,1761533434337,-151.0,0.00044259,120]
[392472755,1761533434346,-151.0,0.00044259,120]
[392472756,1761533434356,-151.0,0.00044259,120]
[392472757,1761533434366,-151.0,0.00044259,120]
[392472758,1761533434375,-173.718012,0.00044259,120]
[392472759,1761533434385,-151.0,0.00044259,120]
[392472760,1761533434395,-166.854132,0.00044259,120]
[392472761,1761533434405,-167.509934,0.00044259,120]
[392472762,1761533434414,-157.449187,0.00044259,120]
[392472763,1761533434424,-174.791779,0.00044259,120]
[392472764,1761533434433,-151.000002,0.00044259,120]
[392472765,1761533434443,-151.0,0.00044259,30]
[392472766,1761533434452,-151.0,0.00044259,120]
[392472767,1761533434462,-7771.68558173,0.00044259,3]
[392472768,1761533434474,-1367.74106718,0.00044259,3]
[392472769,1761533434485,-2311.16390639,0.00044259,3]
[392472770,1761533434496,-344.81,0.00044259,3]
[392472771,1761533434507,-1603.77847889,0.00044259,3]
[392472772,1761533434518,-19147.20869953,0.00044259,3]
[392472773,1761533434529,-506.58,0.00044259,3]
[392472779,1761533437781,-300.0,0.00042,60]
[392472781,1761533437790,-562.077,0.00044058,2]
[392472783,1761533437799,-151.0,0.00044249,120]
[392472785,1761533437808,-151.0,0.00044259,120]
[392472786,1761533437819,-875.42942545,0.00044259,3]
[392472787,1761533437830,-471.87366345,0.00044259,3]
[392472788,1761533437841,-1374.5491995,0.00044259,3]
[392472789,1761533437947,-42.94204678,0.00044259,3]
[392472790,1761533437959,-8679.93775452,0.00044259,3]
[392472791,1761533437969,-2548.26467723,0.00044259,3]
[392472792,1761533437980,-9075.73714894,0.00044259,3]
[392472854,1761533438871,-4195.75134698,0.00044259,3]
[392472894,1761533440101,-3132.80108384,0.00044259,3]
[392472895,1761533440114,-58268.73600105,0.00044259,3]
[392472896,1761533440126,-2388.93588154,0.00044259,3]
[392472897,1761533440136,-500.0,0.00044268,120]
[392472898,1761533440146,-500.0,0.00044268,120]
[392472899,1761533440155,-500.0,0.00044268,120]
[392472900,1761533440164,-500.0,0.00044268,120]
[392472901,1761533440173,-500.0,0.00044268,120]
[392472902,1761533440182,-500.0,0.00044268,120]
[392472903,1761533440191,-500.0,0.00044268,120]
[392472904,1761533440200,-500.0,0.00044268,120]
[392472905,1761533440209,-500.0,0.00044268,120]
[392472906,1761533440218,-500.0,0.00044268,120]
[392472907,1761533440226,-500.0,0.00044268,120]
[392472908,1761533440235,-500.0,0.00044268,120]
[392472909,1761533440244,-500.0,0.00044268,120]
[392472910,1761533440253,-500.0,0.00044268,120]
[392472911,1761533440262,-500.0,0.00044268,120]
[392472912,1761533440272,-211.97392822,0.00044268,120]
[392472913,1761533440281,-1536.31,0.00044268,14]
[392472914,1761533440291,-1536.31,0.00044268,14]
[392472915,1761533440300,-1536.31,0.00044268,14]
[392472916,1761533440309,-1536.31,0.00044268,14]
[392472917,1761533440318,-1536.31,0.00044268,14]
[392472918,1761533440327,-1536.31,0.00044268,14]
[392472919,1761533440336,-1536.31,0.00044268,14]
[392472920,1761533440345,-1536.31,0.00044268,14]
[392472921,1761533440354,-1536.31,0.00044268,14]
[392472922,1761533440362,-1536.31,0.00044268,14]
[392472923,1761533440371,-349.208577,0.00044268,14]
[392472924,1761533440383,-1187.101423,0.00044268,14]
[392472925,1761533440392,-1536.31,0.00044268,14]
[392472926,1761533440401,-1536.31,0.00044268,14]
[392472927,1761533440410,-1536.31,0.00044268,14]
[392472928,1761533440420,-1536.31,0.00044268,14]
[392472930,1761533440429,-1536.31,0.00044268,14]
[392472931,1761533440438,-1536.31,0.00044268,14]
[392472932,1761533440447,-1536.31,0.00044268,14]
[392472933,1761533440456,-1536.31,0.00044268,14]
[392472934,1761533440465,-1536.31,0.00044268,14]
[392472935,1761533440474,-1536.31,0.00044268,14]
[392472936,1761533440483,-1536.50845695,0.00044268,14]
[392472937,1761533440492,-500.0,0.00044268,120]
[392472938,1761533440501,-500.0,0.00044268,120]
[392472939,1761533440510,-500.0,0.00044268,120]
[392472940,1761533440519,-247.08426026,0.00044268,120]
[392472941,1761533440528,-500.0,0.00044268,120]
[392472942,1761533440536,-500.0,0.00044268,120]
[392472943,1761533440546,-500.0,0.00044268,120]
[392472944,1761533440555,-500.0,0.00044268,120]
[392472945,1761533440564,-500.0,0.00044268,120]
[392472946,1761533440573,-500.0,0.00044268,120]
[392472947,1761533440583,-500.0,0.00044268,120]
[392472948,1761533440592,-500.0,0.00044268,120]
[392472949,1761533440601,-500.0,0.00044268,120]
[392472950,1761533440610,-500.0,0.00044268,120]
[392472951,1761533440620,-500.0,0.00044268,120]
[392472952,1761533440632,-500.0,0.00044268,120]
[392472953,1761533440641,-439.40224408,0.00044268,120]
[392472954,1761533440650,-500.0,0.00044268,2]
[392472955,1761533440660,-500.0,0.00044268,2]
[392472956,1761533440669,-591.06032213,0.00044268,2]
[392472957,1761533440678,-175.40811553,0.00044268,120]
[392472958,1761533440687,-178.72215754,0.00044268,120]
[392472959,1761533440697,-500.0,0.00044268,120]
[392472960,1761533440707,-500.0,0.00044268,120]
[392472961,1761533440717,-500.0,0.00044268,120]
[392472962,1761533440726,-500.0,0.00044268,120]
[392472963,1761533440735,-500.0,0.00044268,120]
[392472964,1761533440745,-500.0,0.00044268,120]
[392472965,1761533440754,-500.0,0.00044268,120]
[392472966,1761533440763,-500.0,0.00044268,120]
[392472967,1761533440773,-598.16982753,0.00044268,120]
[392472968,1761533440786,-1171.53,0.00044268,120]
[392472969,1761533440795,-1171.53,0.00044268,120]
[392472970,1761533440804,-1171.53,0.00044268,120]
[392472971,1761533440813,-1171.53,0.00044268,120]
[392472972,1761533440822,-1171.53,0.00044268,120]
[392472973,1761533440831,-1171.53,0.00044268,120]
[392472974,1761533440840,-1171.53,0.00044268,120]
[392472975,1761533440850,-1171.53,0.00044268,120]
[392472976,1761533440862,-1171.53,0.00044268,120]
[392472977,1761533440871,-1171.53,0.00044268,120]
[392472978,1761533440882,-1171.53,0.00044268,120]
[392472979,1761533440891,-1171.53,0.00044268,120]
[392472980,1761533440900,-1171.53,0.00044268,120]
[392472981,1761533440909,-1171.53,0.00044268,120]
[392472982,1761533440919,-1171.53,0.00044268,120]
[392472983,1761533440928,-1171.53,0.00044268,120]
[392472984,1761533440937,-1171.53,0.00044268,120]
[392472985,1761533440946,-1171.53,0.00044268,120]
[392472986,1761533440955,-1171.53,0.00044268,120]
[392472987,1761533440964,-1171.53,0.00044268,120]
[392472988,1761533440973,-1171.53,0.00044268,120]
[392472989,1761533440982,-1171.53753465,0.00044268,120]
[392472990,1761533440992,-216.70691765,0.00044268,120]
[392472991,1761533441001,-500.0,0.00044268,120]
[392472992,1761533441016,-500.0,0.00044268,120]
[392472993,1761533441030,-500.0,0.00044268,120]
[392472994,1761533441039,-500.0,0.00044268,120]
[392472995,1761533441049,-500.0,0.00044268,120]
[392472996,1761533441059,-500.0,0.00044268,120]
[392472997,1761533441069,-500.0,0.00044268,120]
[392472998,1761533441078,-500.0,0.00044268,120]
[392472999,1761533441087,-500.0,0.00044268,120]
[392473000,1761533441096,-500.0,0.00044268,120]
[392473001,1761533441106,-500.0,0.00044268,120]
[392473002,1761533441116,-206.26217645,0.00044268,120]
[392473003,1761533441131,-293.73782355,0.00044268,120]
[392473004,1761533441140,-500.0,0.00044268,120]
[392473005,1761533441156,-500.0,0.00044268,120]
[392473006,1761533441168,-500.0,0.00044268,120]
[392473007,1761533441182,-574.48501467,0.00044268,120]
[392473008,1761533441196,-500.0,0.00044268,120]
[392473009,1761533441208,-500.0,0.00044268,120]
[392473010,1761533441220,-277.37308568,0.00044268,120]
[392473011,1761533441234,-192.27987009,0.00044268,120]
[392473012,1761533441244,-500.0,0.00044268,120]
[392473013,1761533441256,-202.98466151,0.00044268,120]
[392473014,1761533441267,-159.604954,0.00044268,120]
[392473015,1761533441279,-301.581621,0.00044268,120]
[392473016,1761533441291,-89.07676319,0.00044269,44]
[392473017,1761533442102,-356.90157413,0.00044269,44]
[392473018,1761533442115,-2943.59093157,0.00044269,44]
[392473019,1761533442127,-3784.18058883,0.00044269,44]
[392473023,1761533442931,-1823.68153071,0.00043698,2]
[392473029,1761533443036,-1155.11528689,0.00043698,2]
[392473030,1761533443250,-5772.77471817,0.00043698,2]
[392473035,1761533446237,-4212.50830001,0.000386,5]
[392473049,1761533763233,-152.75,0.00028936,2]
[392473050,1761533763256,-204.31640208,0.00031,15]
[392473051,1761533766326,-169.16396376,0.00031,15]
[392473052,1761533771034,-241.49313304,0.00031,15]
[392473053,1761533773912,-127.47650112,0.00031,15]
[392473054,1761533773932,-106.52135361,0.00036825,2]
[392473055,1761533775554,-180.37864639,0.00036825,2]
[392473056,1761533775575,-35.22769384,0.00036825,2]
[392473057,1761533777238,-115.77230616,0.00036825,2]
[392473058,1761533777260,-58.30278777,0.00039999,5]
[392473059,1761533797935,-169.93632099,0.000399,120]
[392473060,1761533797957,-55.21504837,0.00039999,5]
[392473062,1761533827716,-159.64630643,0.00039998,5]
[392473063,1761533836976,-229.15180157,0.00039998,5]
[392473064,1761533853588,-11.201892,0.00039998,5]
[392473065,1761533853613,-161.91079197,0.00039999,5]
[392473066,1761533855846,-161.21245878,0.00039999,5]
[392473067,1761533858652,-238.78754122,0.00039999,5]
[392473068,1761533858675,-103.38968259,0.00039999,5]
[392473069,1761533864249,-205.61031741,0.00039999,5]
[392473070,1761533864271,-195.38968259,0.00039999,5]
[392473071,1761533869158,-165.35336065,0.00039999,5]
[392473072,1761533872924,-325.36401293,0.00039999,5]
[392473073,1761533875317,-207.86173315,0.00039999,5]
[392473074,1761533877874,-284.40820052,0.00039999,5]
[392473075,1761533880792,-75.62301016,0.00039999,5]